[Event "Early-Titled-Tuesday-Blitz-October-10-2023"]
[Site "Chess.com"]
[Date "2023.10.10"]
[Round "6"]
[White "BocharovD"]
[Black "Arash_Tahbaz"]
[Result "1-0"]
[WhiteElo "2797"]
[BlackElo "2920"]
[TimeControl "180+1"]
[EndTime "9:04:14 PDT"]
[Termination "BocharovD won on time"]

1. c4 {[%clk 0:03:00.9]} 1... c5 {[%clk 0:02:58.2]} 2. g3 {[%clk 0:02:59.6]}
2... g6 {[%clk 0:02:58.9]} 3. Bg2 {[%clk 0:02:59.9]} 3... Bg7 {[%clk 0:02:59.4]}
4. Nc3 {[%clk 0:03:00.5]} 4... Nc6 {[%clk 0:02:59.5]} 5. d3 {[%clk 0:03:01]}
5... e6 {[%clk 0:03:00]} 6. h4 {[%clk 0:02:44.6]} 6... h6 {[%clk 0:02:59.8]} 7.
Bxc6 {[%clk 0:02:36.6]} 7... dxc6 {[%clk 0:02:53.5]} 8. h5 {[%clk 0:02:37.5]}
8... g5 {[%clk 0:02:52.1]} 9. f4 {[%clk 0:02:38.2]} 9... e5 {[%clk 0:02:51]} 10.
Nf3 {[%clk 0:02:34.3]} 10... exf4 {[%clk 0:02:07.2]} 11. gxf4 {[%clk 0:02:33.8]}
11... g4 {[%clk 0:02:07.7]} 12. Ne5 {[%clk 0:02:27.7]} 12... Be6 {[%clk
0:01:51.7]} 13. Be3 {[%clk 0:02:23.5]} 13... Qd6 {[%clk 0:01:41.2]} 14. Qd2
{[%clk 0:02:22.3]} 14... f5 {[%clk 0:01:22.7]} 15. O-O-O {[%clk 0:02:09]} 15...
O-O-O {[%clk 0:01:14.9]} 16. Bf2 {[%clk 0:01:33.9]} 16... Ne7 {[%clk 0:01:14.8]}
17. Bh4 {[%clk 0:01:30.2]} 17... Rhe8 {[%clk 0:01:14.2]} 18. Rhe1 {[%clk
0:01:23.2]} 18... b6 {[%clk 0:01:03.6]} 19. Kb1 {[%clk 0:01:19.6]} 19... Kb7
{[%clk 0:01:03.8]} 20. e3 {[%clk 0:01:14.9]} 20... Rc8 {[%clk 0:00:58.6]} 21. d4
{[%clk 0:01:10]} 21... cxd4 {[%clk 0:00:31]} 22. exd4 {[%clk 0:01:10.9]} 22...
Bg8 {[%clk 0:00:25.2]} 23. Qg2 {[%clk 0:01:05.6]} 23... Bf6 {[%clk 0:00:24.8]}
24. c5 {[%clk 0:01:03.8]} 24... Qe6 {[%clk 0:00:15.9]} 25. Nxg4 {[%clk
0:00:55.6]} 25... Qxe1 {[%clk 0:00:03.7]} 26. Bxe1 {[%clk 0:00:55.1]} 26... fxg4
{[%clk 0:00:04.2]} 27. Qxg4 {[%clk 0:00:52.6]} 27... Bh7+ {[%clk 0:00:04.8]} 28.
Kc1 {[%clk 0:00:51.4]} 28... Rcd8 {[%clk 0:00:05.2]} 29. Bf2 {[%clk 0:00:46.7]}
29... Bf5 {[%clk 0:00:04.6]} 30. Qf3 {[%clk 0:00:46.4]} 30... bxc5 {[%clk
0:00:04.5]} 31. dxc5 {[%clk 0:00:45.6]} 31... Rxd1+ {[%clk 0:00:05.1]} 32. Qxd1
{[%clk 0:00:45.1]} 32... Kc7 {[%clk 0:00:03.8]} 33. Qd6+ {[%clk 0:00:43.9]} 1-0

[Event "Early-Titled-Tuesday-Blitz-October-10-2023"]
[Site "Chess.com"]
[Date "2023.10.10"]
[Round "6"]
[White "DarZay"]
[Black "KamlaPasand"]
[Result "1-0"]
[WhiteElo "2248"]
[BlackElo "2455"]
[TimeControl "180+1"]
[EndTime "9:04:16 PDT"]
[Termination "DarZay won by resignation"]

1. e4 {[%clk 0:03:00.9]} 1... e5 {[%clk 0:02:53.5]} 2. Nf3 {[%clk 0:02:50.7]}
2... Nc6 {[%clk 0:02:50.3]} 3. Bc4 {[%clk 0:02:50]} 3... Bc5 {[%clk 0:02:42.6]}
4. d3 {[%clk 0:02:49.9]} 4... Nf6 {[%clk 0:02:31.6]} 5. c3 {[%clk 0:02:49.4]}
5... O-O {[%clk 0:02:02.3]} 6. Bb3 {[%clk 0:02:43.7]} 6... d6 {[%clk 0:01:32.9]}
7. h3 {[%clk 0:02:41.9]} 7... Be6 {[%clk 0:01:11.7]} 8. Bc2 {[%clk 0:02:40.9]}
8... h6 {[%clk 0:01:09.8]} 9. O-O {[%clk 0:02:39.9]} 9... d5 {[%clk 0:01:08.7]}
10. Qe2 {[%clk 0:02:39.1]} 10... dxe4 {[%clk 0:01:08.3]} 11. dxe4 {[%clk
0:02:38.9]} 11... a5 {[%clk 0:01:06.5]} 12. Rd1 {[%clk 0:02:38.4]} 12... Qe7
{[%clk 0:01:05.3]} 13. Nbd2 {[%clk 0:02:38.7]} 13... a4 {[%clk 0:01:01.7]} 14.
Nf1 {[%clk 0:02:37.5]} 14... Nd7 {[%clk 0:00:59.6]} 15. Be3 {[%clk 0:02:31.4]}
15... Nb6 {[%clk 0:00:58.5]} 16. b3 {[%clk 0:02:29.9]} 16... axb3 {[%clk
0:00:52.4]} 17. axb3 {[%clk 0:02:29.7]} 17... Bxe3 {[%clk 0:00:52]} 18. Nxe3
{[%clk 0:02:28.8]} 18... f6 {[%clk 0:00:47.3]} 19. Nd5 {[%clk 0:02:25.3]} 19...
Qf7 {[%clk 0:00:46.6]} 20. c4 {[%clk 0:02:19.5]} 20... Nd7 {[%clk 0:00:41.5]}
21. Nxc7 {[%clk 0:02:15.9]} 21... Rxa1 {[%clk 0:00:40.9]} 22. Rxa1 {[%clk
0:02:14.5]} 22... Nc5 {[%clk 0:00:41.5]} 23. Nd5 {[%clk 0:02:08.8]} 23... Qg6
{[%clk 0:00:38.4]} 24. Kh2 {[%clk 0:01:59.7]} 24... Kh7 {[%clk 0:00:36.5]} 25.
b4 {[%clk 0:01:53.4]} 25... Nd7 {[%clk 0:00:34.2]} 26. b5 {[%clk 0:01:52.3]}
26... Nd8 {[%clk 0:00:32.4]} 27. Ra8 {[%clk 0:01:35.3]} 27... Nc5 {[%clk
0:00:31.2]} 28. Qe3 {[%clk 0:01:31.5]} 28... Nd7 {[%clk 0:00:26.9]} 29. Bd3
{[%clk 0:01:24.2]} 29... Bf7 {[%clk 0:00:24.1]} 30. Nh4 {[%clk 0:01:22.4]} 30...
Qh5 {[%clk 0:00:23.3]} 31. Nf5 {[%clk 0:01:19.8]} 31... Ne6 {[%clk 0:00:21.2]}
32. Rxf8 {[%clk 0:01:17.9]} 32... Ndxf8 {[%clk 0:00:21.4]} 33. Be2 {[%clk
0:01:15.1]} 33... Qg6 {[%clk 0:00:20.9]} 34. h4 {[%clk 0:01:02.4]} 34... Kh8
{[%clk 0:00:20.8]} 35. Nde7 {[%clk 0:00:58.7]} 35... Qh7 {[%clk 0:00:21]} 36. c5
{[%clk 0:00:51.6]} 36... g6 {[%clk 0:00:21.6]} 37. Qxh6 {[%clk 0:00:47.7]} 37...
gxf5 {[%clk 0:00:21.6]} 38. Qxf8+ {[%clk 0:00:46.7]} 38... Bg8 {[%clk
0:00:21.1]} 39. Qxf6+ {[%clk 0:00:46.1]} 39... Ng7 {[%clk 0:00:20.3]} 40. Ng6+
{[%clk 0:00:45.5]} 40... Qxg6 {[%clk 0:00:20]} 41. Qxg6 {[%clk 0:00:46]} 41...
fxe4 {[%clk 0:00:20.4]} 42. Qh6+ {[%clk 0:00:46.1]} 42... Bh7 {[%clk 0:00:20.3]}
43. c6 {[%clk 0:00:45.3]} 43... Nf5 {[%clk 0:00:20.8]} 44. Qf6+ {[%clk
0:00:44.8]} 1-0

[Event "Early-Titled-Tuesday-Blitz-October-10-2023"]
[Site "Chess.com"]
[Date "2023.10.10"]
[Round "6"]
[White "Henryk_S"]
[Black "IngOscarArdila"]
[Result "0-1"]
[WhiteElo "2150"]
[BlackElo "2319"]
[TimeControl "180+1"]
[EndTime "9:04:17 PDT"]
[Termination "IngOscarArdila won by checkmate"]

1. e4 {[%clk 0:03:00.9]} 1... e5 {[%clk 0:02:59.7]} 2. Nf3 {[%clk 0:03:00.6]}
2... Nf6 {[%clk 0:02:59.8]} 3. Nc3 {[%clk 0:02:59.9]} 3... Nc6 {[%clk
0:02:59.7]} 4. Bb5 {[%clk 0:02:58.4]} 4... Bb4 {[%clk 0:02:59.1]} 5. O-O {[%clk
0:02:55.8]} 5... O-O {[%clk 0:02:58.7]} 6. d3 {[%clk 0:02:53.4]} 6... d6 {[%clk
0:02:58.5]} 7. Bg5 {[%clk 0:02:48.9]} 7... Bxc3 {[%clk 0:02:56.2]} 8. bxc3
{[%clk 0:02:46.6]} 8... Qe7 {[%clk 0:02:56.4]} 9. Bxc6 {[%clk 0:02:43.4]} 9...
bxc6 {[%clk 0:02:56.3]} 10. h3 {[%clk 0:02:40.5]} 10... h6 {[%clk 0:02:55.9]}
11. Bh4 {[%clk 0:02:31.1]} 11... g5 {[%clk 0:02:55.3]} 12. Nxg5 {[%clk
0:02:22.9]} 12... hxg5 {[%clk 0:02:56.2]} 13. Bxg5 {[%clk 0:02:23.1]} 13... Qe6
{[%clk 0:02:54.8]} 14. f4 {[%clk 0:02:19.9]} 14... Nh7 {[%clk 0:02:53.8]} 15. f5
{[%clk 0:02:12.7]} 15... Qe8 {[%clk 0:02:53.4]} 16. Bh6 {[%clk 0:02:11]} 16...
Kh8 {[%clk 0:02:48.6]} 17. Bxf8 {[%clk 0:01:48.3]} 17... Qxf8 {[%clk 0:02:48.6]}
18. Qh5 {[%clk 0:01:38.7]} 18... Qg7 {[%clk 0:02:44]} 19. g4 {[%clk 0:01:22.3]}
19... f6 {[%clk 0:02:42.7]} 20. Qe8+ {[%clk 0:01:15.7]} 20... Qf8 {[%clk
0:02:42.7]} 21. Qxc6 {[%clk 0:01:12.8]} 21... Rb8 {[%clk 0:02:32.8]} 22. Qxc7
{[%clk 0:01:04.7]} 22... Ba6 {[%clk 0:02:31.3]} 23. Qxa7 {[%clk 0:00:50.3]}
23... Ra8 {[%clk 0:02:31.4]} 24. Qb6 {[%clk 0:00:43.4]} 24... Qh6 {[%clk
0:02:26.3]} 25. Kg2 {[%clk 0:00:36.8]} 25... Qd2+ {[%clk 0:02:24.9]} 26. Rf2
{[%clk 0:00:37.1]} 26... Qxc3 {[%clk 0:02:24.8]} 27. Rb1 {[%clk 0:00:29.9]}
27... d5 {[%clk 0:02:00.1]} 28. Rb3 {[%clk 0:00:15.6]} 28... Qa1 {[%clk
0:01:53.9]} 29. Qc6 {[%clk 0:00:14.3]} 29... Rg8 {[%clk 0:01:47.7]} 30. Qxa6
{[%clk 0:00:13.2]} 30... dxe4 {[%clk 0:01:48.1]} 31. dxe4 {[%clk 0:00:12.4]}
31... Qd1 {[%clk 0:01:47.7]} 32. Qd3 {[%clk 0:00:10.2]} 32... Qe1 {[%clk
0:01:47.1]} 33. Qe3 {[%clk 0:00:09.3]} 33... Qd1 {[%clk 0:01:46.5]} 34. Rd3
{[%clk 0:00:09.3]} 34... Qa1 {[%clk 0:01:45.9]} 35. Rfd2 {[%clk 0:00:08.9]}
35... Ng5 {[%clk 0:01:45.3]} 36. Rd8 {[%clk 0:00:08.1]} 36... Qxa2 {[%clk
0:01:39.5]} 37. Rxg8+ {[%clk 0:00:07.5]} 37... Qxg8 {[%clk 0:01:40.4]} 38. Qd3
{[%clk 0:00:07.4]} 38... Kh7 {[%clk 0:01:24.7]} 39. c4 {[%clk 0:00:07.8]} 39...
Kh6 {[%clk 0:01:24.2]} 40. c5 {[%clk 0:00:08.1]} 40... Qh8 {[%clk 0:01:23.4]}
41. Qe3 {[%clk 0:00:07.9]} 41... Kh7 {[%clk 0:01:17.9]} 42. c6 {[%clk
0:00:07.6]} 42... Qa8 {[%clk 0:01:09.4]} 43. Rd7+ {[%clk 0:00:06.8]} 43... Kh6
{[%clk 0:01:09.7]} 44. h4 {[%clk 0:00:06.5]} 44... Qa2+ {[%clk 0:01:10.4]} 45.
Kg3 {[%clk 0:00:06.9]} 45... Qb1 {[%clk 0:01:09.9]} 46. hxg5+ {[%clk 0:00:06.9]}
46... fxg5 {[%clk 0:01:10.3]} 47. Rd6+ {[%clk 0:00:07]} 47... Kh7 {[%clk
0:01:07.5]} 48. Qxg5 {[%clk 0:00:07.1]} 48... Qg1+ {[%clk 0:01:07.1]} 49. Kf3
{[%clk 0:00:06.5]} 49... Qf1+ {[%clk 0:01:07.5]} 50. Kg3 {[%clk 0:00:06.5]}
50... Qg1+ {[%clk 0:01:07.8]} 51. Kh4 {[%clk 0:00:06.4]} 51... Qh2# {[%clk
0:01:07.4]} 0-1

[Event "Early-Titled-Tuesday-Blitz-October-10-2023"]
[Site "Chess.com"]
[Date "2023.10.10"]
[Round "6"]
[White "lilleper1"]
[Black "fastestmindalive"]
[Result "1-0"]
[WhiteElo "2886"]
[BlackElo "2742"]
[TimeControl "180+1"]
[EndTime "9:04:18 PDT"]
[Termination "lilleper1 won by resignation"]

1. d4 {[%clk 0:03:00.9]} 1... Nf6 {[%clk 0:03:00.2]} 2. c4 {[%clk 0:03:00.4]}
2... g6 {[%clk 0:03:00.7]} 3. Nc3 {[%clk 0:02:57]} 3... Bg7 {[%clk 0:03:01]} 4.
e4 {[%clk 0:02:57.1]} 4... d6 {[%clk 0:03:01.6]} 5. Nf3 {[%clk 0:02:57.7]} 5...
Bg4 {[%clk 0:03:02]} 6. Be3 {[%clk 0:02:55.6]} 6... Bxf3 {[%clk 0:02:53.5]} 7.
Qxf3 {[%clk 0:02:55.1]} 7... e5 {[%clk 0:02:53.8]} 8. d5 {[%clk 0:02:55.2]} 8...
h5 {[%clk 0:02:52.6]} 9. h3 {[%clk 0:02:53.2]} 9... Bh6 {[%clk 0:02:51.8]} 10.
O-O-O {[%clk 0:02:47.7]} 10... Nbd7 {[%clk 0:02:47.5]} 11. Bxh6 {[%clk
0:02:46.3]} 11... Rxh6 {[%clk 0:02:48.4]} 12. Kb1 {[%clk 0:02:46.5]} 12... Rh8
{[%clk 0:02:46.3]} 13. Bd3 {[%clk 0:02:46.3]} 13... a5 {[%clk 0:02:45.2]} 14.
Bc2 {[%clk 0:02:44.3]} 14... Nc5 {[%clk 0:02:44.6]} 15. g4 {[%clk 0:02:41.9]}
15... a4 {[%clk 0:02:22.6]} 16. g5 {[%clk 0:02:38.6]} 16... Nfd7 {[%clk
0:02:22.2]} 17. h4 {[%clk 0:02:39]} 17... Nb6 {[%clk 0:02:20.6]} 18. Qe2 {[%clk
0:02:34.2]} 18... a3 {[%clk 0:02:04.1]} 19. b3 {[%clk 0:02:29.4]} 19... Na6
{[%clk 0:02:03.3]} 20. f4 {[%clk 0:02:18.5]} 20... Nd7 {[%clk 0:02:02.7]} 21. f5
{[%clk 0:02:14.6]} 21... Qb8 {[%clk 0:01:47.3]} 22. Nb5 {[%clk 0:02:11.3]} 22...
Nac5 {[%clk 0:01:23.7]} 23. Rhf1 {[%clk 0:02:10.3]} 23... b6 {[%clk 0:01:05.3]}
24. Rf3 {[%clk 0:01:53]} 24... Kd8 {[%clk 0:01:02.7]} 25. Rdf1 {[%clk
0:01:49.1]} 25... Kc8 {[%clk 0:01:02.1]} 26. fxg6 {[%clk 0:01:49.2]} 26... fxg6
{[%clk 0:01:01.1]} 27. Rf7 {[%clk 0:01:50.1]} 27... Kb7 {[%clk 0:01:01.3]} 28.
b4 {[%clk 0:01:50]} 28... Na6 {[%clk 0:00:31.1]} 29. Rxd7 {[%clk 0:01:48.8]}
29... Rf8 {[%clk 0:00:30.8]} 30. Nxd6+ {[%clk 0:01:45.4]} 30... Ka7 {[%clk
0:00:30.7]} 31. Nb5+ {[%clk 0:01:45.4]} 31... Kb7 {[%clk 0:00:31.2]} 32. d6
{[%clk 0:01:41.1]} 32... Qe8 {[%clk 0:00:26.2]} 33. Rxf8 {[%clk 0:01:37]} 33...
Qxf8 {[%clk 0:00:25.2]} 34. Nxc7 {[%clk 0:01:32.6]} 34... Kc6 {[%clk 0:00:19.5]}
35. Nxa8 {[%clk 0:01:31.3]} 35... Kxd7 {[%clk 0:00:18.5]} 36. Nxb6+ {[%clk
0:01:31]} 36... Kd8 {[%clk 0:00:17.5]} 37. Nd5 {[%clk 0:01:22.3]} 37... Qxd6
{[%clk 0:00:08.5]} 38. c5 {[%clk 0:01:21.6]} 38... Qe6 {[%clk 0:00:06.8]} 39.
Qf3 {[%clk 0:01:19.2]} 39... Nxb4 {[%clk 0:00:03.4]} 40. Qf8+ {[%clk 0:01:17.2]}
40... Kd7 {[%clk 0:00:03.6]} 41. Ba4+ {[%clk 0:01:15]} 41... Nc6 {[%clk
0:00:04]} 42. Qd6+ {[%clk 0:01:10.1]} 42... Qxd6 {[%clk 0:00:04.2]} 43. cxd6
{[%clk 0:01:11]} 43... Kxd6 {[%clk 0:00:03.8]} 44. Bxc6 {[%clk 0:01:11.5]} 44...
Kc5 {[%clk 0:00:04.3]} 45. Ne7 {[%clk 0:01:10.1]} 45... Kd4 {[%clk 0:00:03.4]}
46. Nxg6 {[%clk 0:01:10]} 1-0

[Event "Early-Titled-Tuesday-Blitz-October-10-2023"]
[Site "Chess.com"]
[Date "2023.10.10"]
[Round "6"]
[White "Shivananda1964"]
[Black "jaskol95"]
[Result "0-1"]
[WhiteElo "2415"]
[BlackElo "2593"]
[TimeControl "180+1"]
[EndTime "9:04:19 PDT"]
[Termination "jaskol95 won on time"]

1. Nf3 {[%clk 0:02:59.7]} 1... d5 {[%clk 0:02:59.4]} 2. e3 {[%clk 0:02:57.6]}
2... Nf6 {[%clk 0:02:57.7]} 3. b4 {[%clk 0:02:57.3]} 3... Bg4 {[%clk 0:02:56.3]}
4. c4 {[%clk 0:02:55.8]} 4... e6 {[%clk 0:02:53.3]} 5. a3 {[%clk 0:02:56]} 5...
c6 {[%clk 0:02:53.5]} 6. Bb2 {[%clk 0:02:56.1]} 6... a5 {[%clk 0:02:51.3]} 7. b5
{[%clk 0:02:54.5]} 7... Nbd7 {[%clk 0:02:45.3]} 8. Be2 {[%clk 0:02:27]} 8... a4
{[%clk 0:02:41.5]} 9. Nc3 {[%clk 0:02:19]} 9... Bxf3 {[%clk 0:02:27.4]} 10. gxf3
{[%clk 0:02:13.4]} 10... Ne5 {[%clk 0:02:10.6]} 11. cxd5 {[%clk 0:01:58.3]}
11... exd5 {[%clk 0:02:06]} 12. Nxa4 {[%clk 0:01:45.1]} 12... Nc4 {[%clk
0:01:59.5]} 13. Bxc4 {[%clk 0:01:39.6]} 13... dxc4 {[%clk 0:02:00.2]} 14. bxc6
{[%clk 0:01:33.2]} 14... b5 {[%clk 0:01:49.4]} 15. Nc3 {[%clk 0:01:29.9]} 15...
Qb6 {[%clk 0:01:47.5]} 16. c7 {[%clk 0:01:16.2]} 16... Be7 {[%clk 0:01:25.7]}
17. d3 {[%clk 0:01:08.2]} 17... O-O {[%clk 0:01:13.2]} 18. dxc4 {[%clk 0:01:05]}
18... bxc4 {[%clk 0:01:13.1]} 19. Qe2 {[%clk 0:00:33.5]} 19... Qxc7 {[%clk
0:01:09]} 20. a4 {[%clk 0:00:24.8]} 20... Rfb8 {[%clk 0:01:04.8]} 21. O-O {[%clk
0:00:24]} 21... Ra5 {[%clk 0:00:58.3]} 22. Nb5 {[%clk 0:00:23.4]} 22... Qc5
{[%clk 0:00:52.5]} 23. Rfc1 {[%clk 0:00:22.9]} 23... Rc8 {[%clk 0:00:45.6]} 24.
Ba3 {[%clk 0:00:22.9]} 24... Qg5+ {[%clk 0:00:44.2]} 25. Kh1 {[%clk 0:00:23]}
25... Bxa3 {[%clk 0:00:41.3]} 26. Rxa3 {[%clk 0:00:23.3]} 26... Rca8 {[%clk
0:00:39.1]} 27. Rxc4 {[%clk 0:00:22.3]} 27... h5 {[%clk 0:00:34]} 28. h4 {[%clk
0:00:19.7]} 28... Qf5 {[%clk 0:00:33.1]} 29. Nd4 {[%clk 0:00:03.8]} 29... Qh3+
{[%clk 0:00:30.4]} 30. Kg1 {[%clk 0:00:04.5]} 30... Qxh4 {[%clk 0:00:28.7]} 31.
Nc6 {[%clk 0:00:02.6]} 31... Rg5+ {[%clk 0:00:28]} 0-1

[Event "Early-Titled-Tuesday-Blitz-October-10-2023"]
[Site "Chess.com"]
[Date "2023.10.10"]
[Round "6"]
[White "SmirnovAlexandrA"]
[Black "Manukyan_Artak"]
[Result "1-0"]
[WhiteElo "2643"]
[BlackElo "2475"]
[TimeControl "180+1"]
[EndTime "9:04:22 PDT"]
[Termination "SmirnovAlexandrA won by resignation"]

1. e4 {[%clk 0:03:00.9]} 1... c6 {[%clk 0:02:59.1]} 2. d4 {[%clk 0:02:58.9]}
2... d5 {[%clk 0:03:00]} 3. e5 {[%clk 0:02:57.1]} 3... Bf5 {[%clk 0:02:59.2]} 4.
Nf3 {[%clk 0:02:49.5]} 4... e6 {[%clk 0:02:57.4]} 5. Be2 {[%clk 0:02:49.5]} 5...
c5 {[%clk 0:02:52.6]} 6. O-O {[%clk 0:02:49]} 6... Nc6 {[%clk 0:02:51.5]} 7. Be3
{[%clk 0:02:41.5]} 7... Qb6 {[%clk 0:02:48.9]} 8. b3 {[%clk 0:02:26.2]} 8... Nh6
{[%clk 0:02:42.9]} 9. c4 {[%clk 0:02:23.5]} 9... dxc4 {[%clk 0:02:36.1]} 10.
bxc4 {[%clk 0:02:14.9]} 10... Ng4 {[%clk 0:02:33.6]} 11. d5 {[%clk 0:02:06.5]}
11... Nxe3 {[%clk 0:02:30.6]} 12. fxe3 {[%clk 0:02:04.5]} 12... Nb4 {[%clk
0:02:29.9]} 13. d6 {[%clk 0:01:40.2]} 13... O-O-O {[%clk 0:02:27.1]} 14. Nc3
{[%clk 0:01:30.2]} 14... f6 {[%clk 0:02:22.5]} 15. e4 {[%clk 0:01:12.9]} 15...
Bg6 {[%clk 0:02:15.2]} 16. Rb1 {[%clk 0:01:12.5]} 16... Qc6 {[%clk 0:02:12.4]}
17. a3 {[%clk 0:01:09.5]} 17... Na6 {[%clk 0:02:08.6]} 18. Nb5 {[%clk
0:01:04.1]} 18... Kb8 {[%clk 0:02:08.1]} 19. Qd2 {[%clk 0:00:45.1]} 19... Bxe4
{[%clk 0:02:03.1]} 20. Rb2 {[%clk 0:00:39.7]} 20... g5 {[%clk 0:01:45.4]} 21.
Bd3 {[%clk 0:00:36.1]} 21... g4 {[%clk 0:01:41.4]} 22. Ne1 {[%clk 0:00:32.5]}
22... fxe5 {[%clk 0:01:37.6]} 23. Rf7 {[%clk 0:00:28.3]} 23... Bxd6 {[%clk
0:00:53.1]} 24. Bxe4 {[%clk 0:00:22.1]} 24... Qxe4 {[%clk 0:00:52.4]} 25. Nxd6
{[%clk 0:00:22.1]} 25... Rxd6 {[%clk 0:00:52.6]} 26. Qxd6+ {[%clk 0:00:19.2]}
26... Ka8 {[%clk 0:00:51.8]} 27. Nd3 {[%clk 0:00:15.2]} 27... Qe3+ {[%clk
0:00:47.6]} 28. Kh1 {[%clk 0:00:14.8]} 28... Rb8 {[%clk 0:00:43]} 29. Rbxb7
{[%clk 0:00:09.9]} 29... Rxb7 {[%clk 0:00:39.9]} 30. Qc6 {[%clk 0:00:10.1]}
30... Qe4 {[%clk 0:00:19.9]} 31. Qxe4 {[%clk 0:00:09.4]} 1-0

[Event "Early-Titled-Tuesday-Blitz-October-10-2023"]
[Site "Chess.com"]
[Date "2023.10.10"]
[Round "6"]
[White "AsaHoffmann"]
[Black "Ariadna_Atreides"]
[Result "1-0"]
[WhiteElo "2390"]
[BlackElo "2196"]
[TimeControl "180+1"]
[EndTime "9:04:22 PDT"]
[Termination "AsaHoffmann won on time"]

1. d4 {[%clk 0:02:56.1]} 1... Nf6 {[%clk 0:02:58.1]} 2. Bg5 {[%clk 0:02:51.7]}
2... g6 {[%clk 0:02:52.9]} 3. Nc3 {[%clk 0:02:51.1]} 3... Bg7 {[%clk 0:02:52.4]}
4. e4 {[%clk 0:02:51]} 4... d6 {[%clk 0:02:51.8]} 5. f3 {[%clk 0:02:50.9]} 5...
O-O {[%clk 0:02:45.2]} 6. Qd2 {[%clk 0:02:50.6]} 6... c5 {[%clk 0:02:41.9]} 7.
Nge2 {[%clk 0:02:50.2]} 7... cxd4 {[%clk 0:02:39.7]} 8. Nxd4 {[%clk 0:02:50.2]}
8... Nc6 {[%clk 0:02:40]} 9. Nxc6 {[%clk 0:02:50]} 9... bxc6 {[%clk 0:02:39.5]}
10. Bh6 {[%clk 0:02:50]} 10... Rb8 {[%clk 0:02:22.4]} 11. O-O-O {[%clk
0:02:49.2]} 11... Qb6 {[%clk 0:02:09]} 12. b3 {[%clk 0:02:47.3]} 12... Bxh6
{[%clk 0:01:41.8]} 13. Qxh6 {[%clk 0:02:43.5]} 13... Qb4 {[%clk 0:01:40.8]} 14.
Qd2 {[%clk 0:02:32.9]} 14... a5 {[%clk 0:01:33.6]} 15. Nb1 {[%clk 0:02:31.3]}
15... c5 {[%clk 0:01:24.1]} 16. Qxb4 {[%clk 0:02:25.2]} 16... axb4 {[%clk
0:01:22.9]} 17. Kb2 {[%clk 0:02:23.1]} 17... Be6 {[%clk 0:01:19.6]} 18. Nd2
{[%clk 0:02:22.3]} 18... Nd7 {[%clk 0:01:17.8]} 19. Bc4 {[%clk 0:02:21.5]} 19...
Nb6 {[%clk 0:01:16.4]} 20. Bxe6 {[%clk 0:02:20.4]} 20... fxe6 {[%clk 0:01:16.3]}
21. Ra1 {[%clk 0:02:20.3]} 21... d5 {[%clk 0:01:08.2]} 22. a3 {[%clk 0:02:18.9]}
22... bxa3+ {[%clk 0:01:05.6]} 23. Rxa3 {[%clk 0:02:18.6]} 23... c4 {[%clk
0:00:54.3]} 24. Rha1 {[%clk 0:02:12.8]} 24... Rfc8 {[%clk 0:00:47.8]} 25. Kc1
{[%clk 0:01:52.2]} 25... d4 {[%clk 0:00:19.3]} 26. Nxc4 {[%clk 0:01:43.8]} 26...
Nxc4 {[%clk 0:00:20.2]} 27. bxc4 {[%clk 0:01:43.8]} 27... Rxc4 {[%clk
0:00:19.6]} 28. Ra8 {[%clk 0:01:43.4]} 28... Rxa8 {[%clk 0:00:16]} 29. Rxa8+
{[%clk 0:01:42.2]} 29... Kf7 {[%clk 0:00:16.6]} 30. Kd2 {[%clk 0:01:42.1]} 30...
Rb4 {[%clk 0:00:14.3]} 31. f4 {[%clk 0:01:36.2]} 31... Rb1 {[%clk 0:00:11.8]}
32. Rd8 {[%clk 0:01:32.1]} 32... Rf1 {[%clk 0:00:07.7]} 33. Rxd4 {[%clk
0:01:26.9]} 33... Rxf4 {[%clk 0:00:07.2]} 34. Ke3 {[%clk 0:01:27]} 34... e5
{[%clk 0:00:06.6]} 35. Rd5 {[%clk 0:01:26.6]} 35... Ke6 {[%clk 0:00:06]} 36. c4
{[%clk 0:01:26.5]} 36... Rf1 {[%clk 0:00:05.7]} 37. Kd2 {[%clk 0:01:24.6]} 37...
Rf2+ {[%clk 0:00:05.3]} 38. Kc3 {[%clk 0:01:24.7]} 38... Rxg2 {[%clk 0:00:05.4]}
39. c5 {[%clk 0:01:24.9]} 39... Rg1 {[%clk 0:00:03.3]} 40. Kb4 {[%clk
0:01:21.8]} 40... h5 {[%clk 0:00:03.2]} 41. c6 {[%clk 0:01:21.4]} 41... Rb1+
{[%clk 0:00:02.7]} 42. Kc5 {[%clk 0:01:21]} 42... Rc1+ {[%clk 0:00:02.5]} 43.
Kb6 {[%clk 0:01:20.8]} 43... g5 {[%clk 0:00:02.3]} 44. c7 {[%clk 0:01:19.9]}
44... g4 {[%clk 0:00:01.6]} 45. Rc5 {[%clk 0:01:20]} 45... Rxc5 {[%clk
0:00:01.2]} 46. Kxc5 {[%clk 0:01:19.5]} 46... Kd7 {[%clk 0:00:02.1]} 47. Kd5
{[%clk 0:01:19.5]} 47... Kxc7 {[%clk 0:00:01.6]} 48. Kxe5 {[%clk 0:01:19.5]}
48... h4 {[%clk 0:00:02]} 49. Kf4 {[%clk 0:01:19.4]} 49... g3 {[%clk 0:00:02.3]}
50. hxg3 {[%clk 0:01:18.6]} 50... hxg3 {[%clk 0:00:01.7]} 51. Kxg3 {[%clk
0:01:18.5]} 51... Kd6 {[%clk 0:00:02.2]} 52. Kf4 {[%clk 0:01:18.5]} 52... Ke6
{[%clk 0:00:02.8]} 53. e5 {[%clk 0:01:17.9]} 53... Kd5 {[%clk 0:00:02.7]} 54.
Kf5 {[%clk 0:01:18]} 54... Kc6 {[%clk 0:00:02.4]} 55. Ke6 {[%clk 0:01:17.9]}
55... Kc7 {[%clk 0:00:01.9]} 56. Kxe7 {[%clk 0:01:17.9]} 56... Kc8 {[%clk
0:00:01.1]} 57. Kf7 {[%clk 0:01:17.8]} 1-0